bitfinex/quotes_BTCUSD_20250831
["timestamp","ask_amount","ask_price","bid_price","bid_amount"]
[1756655792834,0.57016475,109010.0,109000.0,0.19129469]
[1756655793039,0.1834694,109010.0,109000.0,0.19329469]
[1756655793245,0.57016475,109010.0,109000.0,0.19329469]
[1756655793456,0.57016475,109010.0,109000.0,0.03633469]
[1756655793671,0.57214475,109010.0,109000.0,0.0725821]
[1756655793896,0.9588401,109010.0,109000.0,0.2305421]
[1756655794100,0.57214475,109010.0,109000.0,0.18922469]
[1756655794307,1.04936642,109010.0,109000.0,0.18922469]
[1756655794508,1.04936642,109010.0,109000.0,0.16164469]
[1756655794718,1.04713642,109010.0,109000.0,0.16164469]
[1756655795847,1.20209642,109010.0,109000.0,0.00668469]
[1756655796085,0.3404094,109010.0,109000.0,0.00668469]
[1756655796294,0.72710475,109010.0,109000.0,0.00668469]
[1756655796928,1.1138001,109010.0,109000.0,0.00368469]
[1756655797264,1.1160301,109010.0,109000.0,0.00068469]
[1756655797436,1.1160301,109010.0,109000.0,0.00268469]
[1756655798404,1.1160301,109010.0,109000.0,0.00468469]
[1756655799645,1.1158301,109010.0,109000.0,0.00468469]
[1756655800057,1.1136001,109010.0,109000.0,0.00468469]
[1756655800802,1.1158301,109010.0,109000.0,0.00468469]
[1756655801535,1.4558301,109010.0,109000.0,0.00468469]
[1756655802714,0.6802094,109010.0,109000.0,0.00468469]
[1756655802987,1.06690475,109010.0,109000.0,0.00468469]
[1756655803130,1.4536001,109010.0,109000.0,0.00468469]
[1756655805003,1.4535601,109010.0,109000.0,0.00468469]
[1756655807913,1.2986401,109010.0,109000.0,0.00468469]
[1756655808060,1.4535601,109010.0,109000.0,0.00975469]
[1756655808948,1.4535601,109010.0,109000.0,0.00468469]
[1756655809336,1.46924142,109010.0,109000.0,0.00468469]
[1756655810162,1.4535601,109010.0,109000.0,0.00468469]
[1756655814937,1.4535601,109010.0,109000.0,0.00763469]
[1756655815589,1.4535601,109010.0,109000.0,0.00971469]
[1756655819242,1.46216228,109010.0,109000.0,0.00971469]
[1756655819594,1.46216228,109010.0,109000.0,0.00468469]
[1756655820219,1.30526337,109010.0,109000.0,0.00971469]
[1756655820424,1.46014337,109010.0,109000.0,0.00971469]
[1756655820654,1.48732116,109010.0,109000.0,0.00468469]
[1756655824151,1.50454478,109010.0,109000.0,0.00468469]
[1756655824826,1.47934699,109010.0,109000.0,0.00468469]
[1756655829770,1.47936378,109010.0,109000.0,0.00468469]
[1756655834172,1.47936378,109010.0,109000.0,0.00763469]
[1756655834379,1.47932378,109010.0,109000.0,0.00971469]
[1756655840552,1.4534801,109010.0,109000.0,0.00971469]
[1756655840765,1.47932672,109010.0,109000.0,0.00971469]
[1756655842470,1.53783408,109010.0,109000.0,0.00971469]
[1756655843529,0.54911602,109010.0,109000.0,0.00971469]
[1756655843966,0.55109602,109010.0,109000.0,0.00971469]
[1756655844168,1.32448672,109010.0,109000.0,0.00971469]
[1756655844854,0.77067079,109020.0,109000.0,0.49168362]
[1756655844855,0.18350043,109020.0,109000.0,0.49168362]
[1756655844987,0.57881024,109020.0,109010.0,0.1548]
[1756655845187,1.30550559,109020.0,109010.0,0.15989]
[1756655845576,1.29689113,109020.0,109010.0,0.03335269]
[1756655845751,1.9450891,109020.0,109010.0,0.02826269]
[1756655845969,1.96453547,109020.0,109010.0,0.00068469]
[1756655846548,1.96453547,109020.0,109010.0,0.00168469]
[1756655846715,1.96453547,109020.0,109010.0,0.00268469]
[1756655846951,1.96453547,109020.0,109010.0,0.00168469]
[1756655847405,1.57784012,109020.0,109010.0,0.00068469]
[1756655848224,1.57561012,109020.0,109010.0,0.00068469]
[1756655851163,1.57560368,109020.0,109010.0,0.00068469]
[1756655851521,1.55839183,109020.0,109010.0,0.00068469]
[1756655851887,1.54978591,109020.0,109010.0,0.00068469]
[1756655852081,1.55839154,109020.0,109010.0,0.00068469]
[1756655855395,1.49478738,109020.0,109010.0,0.00068469]
[1756655855887,1.49468738,109020.0,109010.0,0.00068469]
[1756655857050,1.33988738,109020.0,109010.0,0.00068469]
[1756655857258,1.49464738,109020.0,109010.0,0.00068469]
[1756655857460,1.49464738,109020.0,109010.0,0.00366469]
[1756655858961,1.49464738,109020.0,109010.0,0.00577469]
[1756655860493,1.49464738,109020.0,109010.0,0.00068469]
[1756655861618,1.48604175,109020.0,109010.0,0.00068469]
[1756655861835,1.49464597,109020.0,109010.0,0.00068469]
[1756655863313,1.49464597,109020.0,109010.0,0.00366469]
[1756655865072,1.49460597,109020.0,109010.0,0.00366469]
[1756655865548,1.51181617,109020.0,109010.0,0.00366469]
[1756655867364,1.51181617,109020.0,109010.0,0.00229273]
[1756655867751,1.51181617,109020.0,109010.0,0.00440273]
[1756655871225,0.5234694,109010.0,109000.0,0.00529357]
[1756655871392,0.91016475,109010.0,109000.0,0.00529357]
[1756655871592,0.5234694,109010.0,109000.0,0.00724357]
[1756655871799,0.91016475,109010.0,109000.0,0.00724357]
[1756655873109,0.91016475,109010.0,109000.0,0.00924357]
[1756655873488,0.91016475,109010.0,109000.0,0.01124357]
[1756655876885,0.91016475,109010.0,109000.0,0.00895]
[1756655877089,0.91228475,109010.0,109000.0,0.00895]
[1756655877462,0.61388572,109010.0,109000.0,0.00895]
[1756655877680,1.00058107,109010.0,109000.0,0.01124357]
[1756655878127,0.91228475,109010.0,109000.0,0.01124357]
[1756655878693,0.91228475,109010.0,109000.0,0.00895]
[1756655879951,0.5255894,109010.0,109000.0,0.01124357]
[1756655880177,0.91228475,109010.0,109000.0,0.01124357]
[1756655880452,0.91016475,109010.0,109000.0,0.01124357]
[1756655882644,0.38669535,109010.0,109000.0,0.01124357]
[1756655882870,0.57016475,109010.0,109000.0,0.01124357]
[1756655887412,0.57228475,109010.0,109000.0,0.01124357]
[1756655887616,0.1834694,109010.0,109000.0,0.01124357]
[1756655887889,0.57016475,109010.0,109000.0,0.01124357]
[1756655888521,0.57228475,109010.0,109000.0,0.01124357]
[1756655889385,0.57228475,109010.0,109000.0,0.00895]
[1756655889895,0.57228475,109010.0,109000.0,0.01124357]
[1756655890483,0.57228475,109010.0,109000.0,0.00895]
[1756655890801,0.59457766,109010.0,109000.0,0.15864]
[1756655890975,0.98127301,109010.0,109000.0,0.15864]
[1756655892353,0.98404301,109010.0,109000.0,0.004]
[1756655892563,0.98404301,109010.0,109000.0,0.15864]
[1756655893210,1.13864301,109010.0,109000.0,0.004]
[1756655893419,1.14725635,109010.0,109000.0,0.002]
[1756655893828,1.14725635,109010.0,109000.0,0.003]
[1756655894011,1.14725635,109010.0,109000.0,0.002]
[1756655894440,0.18348623,109000.0,108990.0,0.743999]
[1756655894583,0.95687693,109000.0,108990.0,0.743999]
[1756655894788,0.95899693,109000.0,108990.0,0.743999]
[1756655896302,0.95899693,109000.0,108990.0,0.745999]
[1756655897700,0.95899693,109000.0,108990.0,0.747999]
[1756655899216,0.95899693,109000.0,108990.0,0.75420364]
[1756655899623,0.95899693,109000.0,108990.0,0.75615364]
[1756655899825,0.95899693,109000.0,108990.0,0.75938364]
[1756655900826,0.18348623,109000.0,108990.0,0.75938364]
[1756655901035,0.95687693,109000.0,108990.0,0.75938364]
[1756655902693,0.95885693,109000.0,108990.0,0.75938364]
[1756655902927,0.95687693,109000.0,108990.0,0.6837193]
[1756655905589,0.18348623,109000.0,108990.0,0.6837193]
[1756655905763,0.95687693,109000.0,108990.0,0.6837193]
[1756655906700,0.18348623,109000.0,108990.0,0.6837193]
[1756655906846,0.95687693,109000.0,108990.0,0.6837193]
[1756655907050,0.18348623,109000.0,108990.0,0.6837193]
[1756655907258,0.95687693,109000.0,108990.0,0.6837193]
[1756655908007,0.18348623,109000.0,108990.0,0.6837193]
[1756655908188,0.95687693,109000.0,108990.0,0.6837193]
[1756655908815,0.4377277,109010.0,108990.0,0.6837193]
[1756655908994,0.95687693,109000.0,108990.0,0.6837193]
[1756655909778,0.18348623,109000.0,108990.0,0.6837193]
[1756655909984,0.95687693,109000.0,108990.0,0.6837193]
[1756655910185,0.95687693,109000.0,108990.0,0.6817193]
[1756655910616,0.95687693,109000.0,108990.0,0.6827193]
[1756655911091,0.95687693,109000.0,108990.0,0.6817193]
[1756655911324,0.95687693,109000.0,108990.0,0.6837193]
[1756655912170,0.18348623,109000.0,108990.0,0.6837193]
[1756655912344,0.95687693,109000.0,108990.0,0.6837193]
[1756655913311,0.38669535,109000.0,108990.0,0.86722237]
[1756655913445,0.57018158,109000.0,108990.0,0.86722237]
[1756655917106,0.18348623,109000.0,108990.0,0.86722237]
[1756655917316,0.57018158,109000.0,108990.0,0.86722237]
[1756655920991,0.95687693,109000.0,108990.0,0.86722237]
[1756655921862,0.95687693,109000.0,108990.0,0.89480437]
[1756655926498,0.38669535,109000.0,108990.0,0.89480437]
[1756655932903,0.57018158,109000.0,108990.0,0.89480437]
[1756655933169,0.95885693,109000.0,108990.0,0.74020437]
[1756655933375,0.95885693,109000.0,108990.0,0.88950437]
[1756655934018,0.95885693,109000.0,108990.0,0.89150437]
[1756655934269,0.95885693,109000.0,108990.0,0.89458437]
[1756655940188,0.95885693,109000.0,108990.0,0.74010437]
[1756655940374,0.95885693,109000.0,108990.0,0.89454437]
[1756655942332,0.84752793,109000.0,108990.0,0.89454437]
[1756655942959,0.84554793,109000.0,108990.0,0.89454437]
[1756655943391,0.7733907,109000.0,108990.0,0.89454437]
[1756655945176,0.95687693,109000.0,108990.0,0.89454437]
[1756655949518,0.38669535,109000.0,108990.0,0.89454437]
[1756655949723,0.4099837,109010.0,108990.0,0.89454437]
[1756655949878,0.38669535,109000.0,108990.0,0.74010437]
[1756655950070,0.38669535,109000.0,108990.0,0.86692237]
[1756655950458,0.38669535,109000.0,108990.0,0.89450337]
[1756655950663,0.38669535,109000.0,108990.0,0.89250337]
[1756655951486,0.38669535,109000.0,108990.0,0.89050337]
[1756655952100,0.38669535,109000.0,108990.0,0.89150337]
[1756655952257,0.38669535,109000.0,108990.0,0.89250337]
[1756655952464,0.38669535,109000.0,108990.0,0.89150337]
[1756655952658,0.2555837,109010.0,108990.0,0.95931818]
[1756655952892,0.4099837,109010.0,109000.0,0.15748]
[1756655953090,0.21118099,109010.0,109000.0,0.15948]
[1756655953304,0.39465039,109010.0,109000.0,0.187061]
[1756655953704,0.39663039,109010.0,109000.0,0.187061]
[1756655953910,0.39663039,109010.0,109000.0,0.029581]
[1756655954139,1.17293109,109010.0,109000.0,0.181941]
[1756655954553,1.17293109,109010.0,109000.0,0.027581]
[1756655955716,1.17293109,109010.0,109000.0,0.029581]
[1756655957463,1.17002109,109010.0,109000.0,0.029581]
[1756655963364,1.18445108,109010.0,109000.0,0.029581]
[1756655964325,1.16994109,109010.0,109000.0,0.029581]
[1756655964953,0.78324574,109010.0,109000.0,0.21833723]
[1756655965158,1.16994109,109010.0,109000.0,0.034851]
[1756655967413,0.78324574,109010.0,109000.0,0.034851]
[1756655968119,0.39655039,109010.0,109000.0,0.21833723]
[1756655968320,0.78324574,109010.0,109000.0,0.21833723]
[1756655969919,0.78126574,109010.0,109000.0,0.21833723]
[1756655970750,0.78324574,109010.0,109000.0,0.21833723]
[1756655972340,0.78324574,109010.0,109000.0,0.031601]
[1756655972544,1.16994109,109010.0,109000.0,0.029581]
[1756655972904,0.78324574,109010.0,109000.0,0.029581]
[1756655978392,0.3397694,109010.0,109000.0,0.2206308]
[1756655978603,0.72646475,109010.0,109000.0,0.21833723]
[1756655978929,0.3397694,109010.0,109000.0,0.21833723]
[1756655979086,0.72440475,109010.0,109000.0,0.21833723]
[1756655979718,0.72638475,109010.0,109000.0,0.21833723]
[1756655983617,0.72638475,109010.0,109000.0,0.21508723]
[1756655985177,0.72638475,109010.0,109000.0,0.029581]
[1756655986322,0.57214475,109010.0,109000.0,0.029581]
[1756655986523,0.72638475,109010.0,109000.0,0.029581]
[1756655987172,0.72929475,109010.0,109000.0,0.029581]
[1756655987896,0.72638475,109010.0,109000.0,0.029581]
[1756655988075,0.72638475,109010.0,109000.0,0.21631723]
[1756655988983,0.72638475,109010.0,109000.0,0.032831]
[1756655989851,0.72638475,109010.0,109000.0,0.21631723]
[1756655992033,0.72638475,109010.0,109000.0,0.21306723]
[1756655992443,1.27640072,109010.0,109000.0,0.029581]
[1756655992647,2.02894212,109010.0,109000.0,0.002]
[1756655993013,1.66983077,109010.0,109000.0,0.002]
[1756655993621,1.66981974,109010.0,109000.0,0.002]
[1756655995587,1.65259639,109010.0,109000.0,0.002]
[1756655998923,1.65259144,109010.0,109000.0,0.002]
[1756655999729,1.65259092,109010.0,109000.0,0.002]
[1756656000142,1.64398472,109010.0,109000.0,0.002]
[1756656000959,1.02335913,109010.0,109000.0,0.002]
[1756656001350,0.56454948,109010.0,109000.0,0.002]
[1756656001600,0.95124483,109010.0,109000.0,0.002]
[1756656001847,0.56454948,109010.0,109000.0,0.002]
[1756656002035,0.94833483,109010.0,109000.0,0.002]
[1756656002745,0.95124483,109010.0,109000.0,0.002]
[1756656002966,1.10540483,109010.0,109000.0,0.002]
[1756656003457,1.10249483,109010.0,109000.0,0.002]
[1756656003709,1.10249483,109010.0,109000.0,0.00697]
[1756656003710,0.71579948,109010.0,109000.0,0.00697]
[1756656003911,1.10249483,109010.0,109000.0,0.00697]
[1756656004355,0.71579948,109010.0,109000.0,0.00697]
[1756656004575,1.09388875,109010.0,109000.0,0.00697]
[1756656004877,1.09388875,109010.0,109000.0,0.00401]
[1756656005132,1.09388875,109010.0,109000.0,0.002]
[1756656005382,1.10249356,109010.0,109000.0,0.002]
[1756656005632,0.94833356,109010.0,109000.0,0.002]
[1756656005885,1.10249356,109010.0,109000.0,0.00697]
[1756656006716,1.10249356,109010.0,109000.0,0.00401]
[1756656006926,1.10249356,109010.0,109000.0,0.002]
[1756656007365,0.91082167,109010.0,109000.0,0.002]
[1756656007573,0.70759572,109010.0,109000.0,0.002]
[1756656007955,1.09429107,109010.0,109000.0,0.002]
[1756656008174,1.66471275,109010.0,109000.0,0.002]
[1756656008378,6.7151697,109010.0,109000.0,0.002]
[1756656008502,7.12394726,109010.0,109000.0,0.002]
[1756656008717,7.13039732,109010.0,109000.0,0.002]
[1756656010584,7.13039332,109010.0,109000.0,0.002]
[1756656011934,7.15020129,109010.0,109000.0,0.002]
[1756656012350,7.13039332,109010.0,109000.0,0.002]
[1756656012959,6.97623332,109010.0,109000.0,0.002]
[1756656013104,6.58953797,109010.0,109000.0,0.002]
[1756656013305,6.74271797,109010.0,109000.0,0.002]
[1756656013923,6.58859797,109010.0,109000.0,0.002]
[1756656014131,6.73626908,109010.0,109000.0,0.002]
[1756656015197,6.58214908,109010.0,109000.0,0.002]
[1756656015406,6.73626908,109010.0,109000.0,0.002]
[1756656016455,6.58214908,109010.0,109000.0,0.002]
[1756656016658,6.73626908,109010.0,109000.0,0.002]
[1756656017399,6.58214908,109010.0,109000.0,0.002]
[1756656017609,1.20443786,109010.0,109000.0,0.00697]
[1756656018009,1.59113321,109010.0,109000.0,0.00697]
[1756656018453,0.95733785,109010.0,109000.0,0.00697]
[1756656018628,1.11145785,109010.0,109000.0,0.00697]
[1756656019371,1.09423978,109010.0,109000.0,0.00697]
[1756656019570,1.11142682,109010.0,109000.0,0.00697]
[1756656020033,1.23993479,109010.0,109000.0,0.00697]
[1756656021116,1.08581479,109010.0,109000.0,0.00697]
[1756656021323,1.23993479,109010.0,109000.0,0.00697]
[1756656022086,0.72473226,109010.0,109000.0,0.00697]
[1756656022337,1.23993479,109010.0,109000.0,0.00697]
[1756656024147,1.08581479,109010.0,109000.0,0.00926357]
[1756656024351,0.55342443,109010.0,109000.0,0.00926357]
[1756656024477,0.69891091,109010.0,109000.0,0.00926357]
[1756656024910,1.21411344,109010.0,109000.0,0.00926357]
[1756656025170,0.69891091,109010.0,109000.0,0.00926357]
[1756656025367,1.21411344,109010.0,109000.0,0.00926357]
[1756656025683,0.69891091,109010.0,109000.0,0.00926357]
[1756656026136,1.21411344,109010.0,109000.0,0.00926357]
[1756656026314,1.06003344,109010.0,109000.0,0.00926357]
[1756656026673,1.21411344,109010.0,109000.0,0.00926357]
[1756656029062,0.69891091,109010.0,109000.0,0.00926357]
[1756656029302,1.21411344,109010.0,109000.0,0.00926357]
[1756656029959,1.06003344,109010.0,109000.0,0.00926357]
[1756656030159,1.21411344,109010.0,109000.0,0.00926357]
[1756656033593,1.21411344,109010.0,109000.0,0.00697]
[1756656034164,1.21562344,109010.0,109000.0,0.00697]
[1756656034976,1.21562344,109010.0,109000.0,0.00496]
[1756656035422,1.21562344,109010.0,109000.0,0.00697]
[1756656036738,1.21558344,109010.0,109000.0,0.00697]
[1756656037771,0.70038091,109010.0,109000.0,0.00697]
[1756656037975,1.21558344,109010.0,109000.0,0.00697]
[1756656039398,1.21558344,109010.0,109000.0,0.00496]
[1756656040306,0.70038091,109010.0,109000.0,0.00496]
[1756656040581,1.0867701,109010.0,109000.0,0.00496]
[1756656042385,0.70038091,109010.0,109000.0,0.00697]
[1756656042590,1.0867701,109010.0,109000.0,0.00697]
[1756656042991,0.9327301,109010.0,109000.0,0.00697]
[1756656043242,1.0867701,109010.0,109000.0,0.00697]
[1756656043795,0.54634091,109010.0,109000.0,0.00697]
[1756656044025,1.0867701,109010.0,109000.0,0.002]
[1756656044227,2.00606224,109010.0,109000.0,0.002]
[1756656044428,1.67447713,109010.0,109000.0,0.002]
[1756656045905,2.06086632,109010.0,109000.0,0.002]
[1756656046098,1.67447713,109010.0,109000.0,0.002]
[1756656046529,1.76277345,109010.0,109000.0,0.002]
[1756656047649,6.76277345,109010.0,109000.0,0.002]
[1756656048073,7.02082659,109010.0,109000.0,0.002]
[1756656050900,7.02078659,109010.0,109000.0,0.002]
[1756656051120,6.50537083,109010.0,109000.0,0.002]
[1756656051684,6.50535274,109010.0,109000.0,0.002]
[1756656051872,7.0207685,109010.0,109000.0,0.002]
[1756656055267,7.02076116,109010.0,109000.0,0.002]
[1756656059750,6.86676116,109010.0,109000.0,0.002]
[1756656059976,7.02073327,109010.0,109000.0,0.002]
[1756656060226,7.02072911,109010.0,109000.0,0.002]
[1756656060639,6.86672911,109010.0,109000.0,0.002]
[1756656060842,7.02072911,109010.0,109000.0,0.002]
[1756656061350,7.03633838,109010.0,109000.0,1e-08]
[1756656061525,0.57881577,109000.0,108990.0,0.5199393]
[1756656061732,7.06993712,109000.0,108990.0,0.5199393]
[1756656062085,7.06993435,109000.0,108990.0,0.5199393]
[1756656062296,7.06993356,109000.0,108990.0,0.5199393]
[1756656062979,7.06993356,109000.0,108990.0,0.10179283]
[1756656063587,0.52351991,108980.0,108970.0,0.00315]
[1756656063790,1.44435738,108980.0,108970.0,0.00315]
[1756656064006,1.44586738,108980.0,108970.0,0.00516]
[1756656064213,1.47346038,108980.0,108970.0,0.00516]
[1756656064994,1.47199785,108980.0,108970.0,0.00516]
[1756656065572,6.47350785,108980.0,108970.0,0.00616]
[1756656066376,6.48209262,108980.0,108970.0,0.00616]
[1756656068860,6.48209262,108980.0,108970.0,0.00415]
[1756656069416,6.48209262,108980.0,108970.0,0.00616]
[1756656070141,6.74011076,108980.0,108970.0,0.00616]
[1756656070743,6.74011076,108980.0,108970.0,0.001]
[1756656070948,7.16006263,108980.0,108970.0,0.001]
[1756656071885,7.18859966,108980.0,108970.0,0.001]
[1756656072724,5.87444991,108980.0,108970.0,0.001]
[1756656072923,6.77334925,108980.0,108970.0,0.00616]
[1756656073128,6.74655426,108980.0,108970.0,0.00616]
[1756656073337,6.76634595,108980.0,108970.0,0.00616]
[1756656074155,6.50850729,108980.0,108970.0,0.00616]
[1756656075340,6.49347714,108980.0,108970.0,0.001]
[1756656075540,6.5085162,108980.0,108970.0,0.001]
[1756656077824,6.5085162,108980.0,108970.0,0.00415]
[1756656078232,6.50851559,108980.0,108970.0,0.00415]
[1756656078667,6.50851559,108980.0,108970.0,0.001]
[1756656078878,6.56384514,108980.0,108970.0,0.001]
[1756656082486,6.56385344,108980.0,108970.0,0.001]
[1756656082922,6.55740888,108980.0,108970.0,0.001]
[1756656083125,6.56385347,108980.0,108970.0,0.001]
[1756656085600,6.56385347,108980.0,108970.0,0.00416]
[1756656086022,6.56386252,108980.0,108970.0,0.00416]
[1756656086244,5.89426728,108980.0,108970.0,0.00416]
[1756656086502,6.56466252,108980.0,108970.0,0.00622]
[1756656090656,6.58940053,108980.0,108970.0,0.00622]
[1756656092851,6.43460053,108980.0,108970.0,0.00622]
[1756656093053,6.57925778,108980.0,108970.0,0.00622]
[1756656093250,6.58790918,108980.0,108970.0,0.00622]
[1756656093467,6.09314918,108980.0,108970.0,0.00622]
[1756656093674,0.21585777,108980.0,108970.0,0.52181524]
[1756656093886,0.70419981,108980.0,108970.0,0.70535199]
[1756656094096,0.70419806,108980.0,108970.0,0.57622652]
[1756656094533,0.54939806,108980.0,108970.0,0.57622652]
[1756656095171,0.54939806,108980.0,108970.0,0.18975675]
[1756656095385,0.53217819,108980.0,108970.0,0.57622652]
[1756656095808,0.68697819,108980.0,108970.0,0.39268977]
[1756656096019,0.68697819,108980.0,108970.0,0.00622]
[1756656096227,0.68697819,108980.0,108970.0,0.18975675]
[1756656096433,0.67836738,108980.0,108970.0,0.18975675]
[1756656102704,0.52356738,108980.0,108970.0,0.18975675]
[1756656102932,0.67816738,108980.0,108970.0,0.18975675]
[1756656105776,0.67816738,108980.0,108970.0,0.00622]
[1756656106070,0.67816738,108980.0,108970.0,0.18975675]
[1756656106268,0.67816738,108980.0,108970.0,0.00622]
[1756656106819,0.67816738,108980.0,108970.0,0.18975675]
[1756656108778,0.67816738,108980.0,108970.0,0.00622]
[1756656111125,1.19352369,108980.0,108970.0,0.00622]
[1756656111415,1.22434245,108980.0,108970.0,0.00622]
[1756656115323,1.22585245,108980.0,108970.0,0.001]
[1756656115536,1.31977246,108980.0,108970.0,0.001]
[1756656115748,1.37313608,108980.0,108970.0,0.001]
[1756656116773,6.37313608,108980.0,108970.0,0.001]
[1756656116979,6.39293209,108980.0,108970.0,0.001]
[1756656117474,6.39937675,108980.0,108970.0,0.001]
[1756656118090,6.39938143,108980.0,108970.0,0.001]
[1756656118290,6.39293677,108980.0,108970.0,0.001]
[1756656118491,6.39938184,108980.0,108970.0,0.001]
[1756656121254,6.3993919,108980.0,108970.0,0.001]
[1756656122652,6.20277886,108980.0,108970.0,0.001]
[1756656122858,6.38629877,108980.0,108970.0,0.001]
[1756656123231,6.41309376,108980.0,108970.0,0.001]
[1756656124049,6.413104,108980.0,108970.0,0.001]
[1756656124918,6.41310125,108980.0,108970.0,0.001]
[1756656127776,6.41309708,108980.0,108970.0,0.001]
[1756656127998,6.41163708,108980.0,108970.0,0.001]
[1756656130166,6.66969363,108980.0,108970.0,0.001]
[1756656132029,7.05640006,108980.0,108970.0,0.001]
[1756656132456,7.05734006,108980.0,108970.0,0.001]
[1756656134659,7.05733637,108980.0,108970.0,0.001]
[1756656134870,7.10737093,108980.0,108970.0,0.001]
[1756656135276,7.15737093,108980.0,108970.0,0.001]
[1756656135901,0.18355359,108960.0,108950.0,0.00322]
[1756656136113,1.0877027,108960.0,108950.0,0.00322]
[1756656136327,1.0892127,108960.0,108950.0,0.00322]
[1756656136947,1.60499131,108960.0,108950.0,0.00322]
[1756656137159,1.63258931,108960.0,108950.0,0.00322]
[1756656137370,1.1168107,108960.0,108950.0,0.00322]
[1756656137594,1.63258931,108960.0,108950.0,0.00522]
[1756656137799,6.63258931,108960.0,108950.0,0.00522]
[1756656139057,6.63258931,108960.0,108950.0,0.00822]
[1756656139688,6.63258931,108960.0,108950.0,0.005]
[1756656139689,6.97258931,108960.0,108950.0,0.005]
[1756656139904,7.05145016,108960.0,108950.0,0.005]
[1756656140318,7.05239016,108960.0,108950.0,0.005]
[1756656140739,7.05239016,108960.0,108950.0,0.003]
[1756656141560,6.92304817,108960.0,108950.0,0.003]
[1756656141766,0.18358729,108940.0,108930.0,0.00319]
[1756656141999,0.92420312,108940.0,108930.0,0.00319]
[1756656142209,0.92420312,108940.0,108930.0,0.00515]
[1756656142419,0.95180512,108940.0,108930.0,0.00515]
[1756656143003,0.95180512,108940.0,108930.0,0.00529256]
[1756656143286,0.96898459,108940.0,108930.0,0.00829256]
[1756656143826,0.96898459,108940.0,108930.0,0.01029256]
[1756656144222,1.0619646,108940.0,108930.0,0.01029256]
[1756656144628,1.0620046,108940.0,108930.0,0.01029256]
[1756656145048,0.56645623,108940.0,108930.0,0.01029256]
[1756656145253,1.01155762,108940.0,108930.0,0.01029256]
[1756656145463,1.02015676,108940.0,108930.0,0.01029256]
[1756656145668,1.01156389,108940.0,108930.0,0.01029256]
[1756656146517,1.02015592,108940.0,108930.0,0.01029256]
[1756656149417,0.35017731,108940.0,108930.0,0.01029256]
[1756656149629,0.50437731,108940.0,108930.0,0.01029256]
[1756656149831,1.02015592,108940.0,108930.0,0.01029256]
[1756656151750,0.2571973,108940.0,108930.0,0.1938967]
[1756656151963,0.38561953,108940.0,108930.0,0.1938967]
[1756656152188,0.57141953,108940.0,108930.0,0.1938967]
[1756656152397,0.04783224,108940.0,108930.0,0.1938967]
[1756656153080,0.02023024,108940.0,108930.0,0.1938967]
[1756656153356,0.36546194,108950.0,108930.0,0.1938967]
[1756656153610,0.55118194,108950.0,108940.0,0.18677729]
[1756656153861,0.55118194,108950.0,108940.0,0.00515]
[1756656154100,1.22120055,108950.0,108940.0,0.00515]
[1756656154345,1.06696055,108950.0,108940.0,0.00515]
[1756656154569,1.22120055,108950.0,108940.0,0.00515]
[1756656154778,1.24157411,108950.0,108940.0,0.00515]
[1756656154975,1.24161411,108950.0,108940.0,0.00515]
[1756656155400,1.24157411,108950.0,108940.0,0.00515]
[1756656155600,1.24157411,108950.0,108940.0,0.00615]
[1756656155804,1.24157411,108950.0,108940.0,0.00815]
[1756656156417,1.08733411,108950.0,108940.0,0.00815]
[1756656156624,1.24169411,108950.0,108940.0,0.00815]
[1756656158965,1.08733411,108950.0,108940.0,0.00815]
[1756656159185,1.24177411,108950.0,108940.0,0.00815]
[1756656160251,0.7259555,108950.0,108940.0,0.00815]
[1756656160456,0.5715555,108950.0,108940.0,0.00815]
[1756656160603,1.24177411,108950.0,108940.0,0.00815]
[1756656160953,1.08733411,108950.0,108940.0,0.00815]
[1756656161400,1.24181411,108950.0,108940.0,0.00815]
[1756656161597,1.27924942,108950.0,108940.0,0.00815]
[1756656161850,1.24332411,108950.0,108940.0,0.003]
[1756656162083,1.26910952,108950.0,108940.0,0.003]
[1756656163084,1.26051427,108950.0,108940.0,0.00619]
[1756656163236,1.26911226,108950.0,108940.0,0.00619]
[1756656164507,1.11463226,108950.0,108940.0,0.00619]
[1756656164730,1.26903226,108950.0,108940.0,0.00815]
[1756656166212,0.59734365,108950.0,108940.0,0.00815]
[1756656166436,1.26756226,108950.0,108940.0,0.00815]
[1756656166615,1.2503721,108950.0,108940.0,0.00815]
[1756656166790,1.11313304,108950.0,108940.0,0.15815]
[1756656167149,1.2589734,108950.0,108940.0,0.04233958]
[1756656167374,1.24177411,108950.0,108940.0,0.04233958]
[1756656167583,1.24177411,108950.0,108940.0,0.00815]
[1756656167960,0.7259955,108950.0,108940.0,0.00815]
[1756656168182,1.24177411,108950.0,108940.0,0.00815]
[1756656168554,1.08733411,108950.0,108940.0,0.00815]
[1756656168970,1.24173411,108950.0,108940.0,0.00815]
[1756656175217,1.24324411,108950.0,108940.0,0.00815]
[1756656176117,1.24324411,108950.0,108940.0,0.00619]
[1756656176342,1.33154043,108950.0,108940.0,0.00619]
[1756656176831,1.24324411,108950.0,108940.0,0.00619]
[1756656177804,1.24324411,108950.0,108940.0,0.00835]
[1756656178008,1.24324411,108950.0,108940.0,0.00619]
[1756656180389,1.24324411,108950.0,108940.0,0.003]
[1756656180583,1.24308411,108950.0,108940.0,0.003]
[1756656181204,1.26892516,108950.0,108940.0,0.003]
[1756656182573,1.25169779,108950.0,108940.0,0.003]
[1756656182772,1.34093411,108950.0,108940.0,0.003]
[1756656182998,1.52174216,108950.0,108940.0,0.003]
[1756656183344,1.57488931,108950.0,108940.0,0.003]
[1756656184184,6.57488931,108950.0,108940.0,0.003]
[1756656186098,6.59962732,108950.0,108940.0,0.003]
[1756656186757,6.58239952,108950.0,108940.0,0.003]
[1756656186953,6.59960817,108950.0,108940.0,0.003]
[1756656187389,6.59315155,108950.0,108940.0,0.003]
[1756656187595,6.59960022,108950.0,108940.0,0.003]
[1756656188433,6.57486221,108950.0,108940.0,0.003]
[1756656189115,6.39127727,108950.0,108940.0,0.003]
[1756656189291,6.57486221,108950.0,108940.0,0.003]
[1756656190344,7.16004292,108950.0,108940.0,1e-08]
[1756656190557,7.21161426,108950.0,108940.0,1e-08]
[1756656190718,6.69583565,108950.0,108940.0,1e-08]
[1756656190934,6.69583305,108950.0,108940.0,1e-08]
[1756656191168,0.18358729,108940.0,108930.0,0.00014256]
[1756656191308,6.96961393,108940.0,108930.0,0.00014256]
[1756656191684,6.99736662,108940.0,108930.0,0.00014256]
[1756656191912,7.00104762,108940.0,108930.0,0.00014256]